[Event "Swedish Chess Championship 2019: Kadett-SM"]
[Site "Stiga Sports Arena, Arenatorget 1, Eskilstuna, Sweden, Sweden"]
[Date "2019.07.12"]
[Round "6.1"]
[White "Nguyen, Gabriel"]
[Black "Muntean, Victor"]
[Result "1-0"]
[TimeControl "90 minutes for 40 moves + 30 minutes for the rest of the game + 30 seconds per move from move one"]
[WhiteFideId "1720791"]
[BlackFideId "1054414"]
[WhiteElo "2035"]
[BlackElo "1971"]

1. d4 {[%clk 01:30:12]} {[%emt 00:00:47]} Nf6 {[%clk 01:30:47]} {[%emt
00:00:14]} 2. c4 {[%clk 01:30:35]} {[%emt 00:00:07]} g6 {[%clk 01:31:09]}
{[%emt 00:00:08]} 3. Nc3 {[%clk 01:30:42]} {[%emt 00:00:23]} Bg7 {[%clk
01:31:33]} {[%emt 00:00:06]} 4. e4 {[%clk 01:31:08]} {[%emt 00:00:04]} d6
{[%clk 01:31:58]} {[%emt 00:00:06]} 5. Nf3 {[%clk 01:30:29]} {[%emt 00:01:08]}
O-O {[%clk 01:32:19]} {[%emt 00:00:09]} 6. Be2 {[%clk 01:30:52]} {[%emt
00:00:06]} e5 {[%clk 01:32:43]} {[%emt 00:00:07]} 7. O-O {[%clk 01:30:25]}
{[%emt 00:00:57]} Nc6 {[%clk 01:33:05]} {[%emt 00:00:08]} 8. d5 {[%clk
01:30:48]} {[%emt 00:00:06]} Ne7 {[%clk 01:33:30]} {[%emt 00:00:06]} 9. b4
{[%clk 01:30:03]} {[%emt 00:01:15]} Nh5 {[%clk 01:31:32]} {[%emt 00:02:29]} 10.
Re1 {[%clk 01:29:54]} {[%emt 00:00:37]} f5 {[%clk 01:30:23]} {[%emt 00:01:39]}
11. Ng5 {[%clk 01:30:10]} {[%emt 00:00:13]} Nf4 {[%clk 01:30:07]} {[%emt
00:00:47]} 12. Bxf4 {[%clk 01:29:24]} {[%emt 00:01:17]} exf4 {[%clk 01:30:29]}
{[%emt 00:00:08]} 13. Rc1 {[%clk 01:28:42]} {[%emt 00:01:12]} Bh6 {[%clk
01:20:19]} {[%emt 00:10:40]} 14. Ne6 {[%clk 01:22:00]} {[%emt 00:07:12]} Bxe6
{[%clk 01:20:24]} {[%emt 00:00:25]} 15. dxe6 {[%clk 01:22:25]} {[%emt
00:00:05]} f3 {[%clk 01:20:00]} {[%emt 00:00:55]} 16. Bxf3 {[%clk 01:22:47]}
{[%emt 00:00:07]} Bxc1 {[%clk 01:20:22]} {[%emt 00:00:09]} 17. Qxc1 {[%clk
01:23:10]} {[%emt 00:00:07]} c6 {[%clk 01:17:29]} {[%emt 00:03:22]} 18. Qg5
{[%clk 00:50:20]} {[%emt 00:33:19]} Qc7 {[%clk 01:11:39]} {[%emt 00:06:21]} 19.
h4 {[%clk 00:45:28]} {[%emt 00:05:21]} Kg7 {[%clk 01:05:27]} {[%emt 00:06:43]}
20. h5 {[%clk 00:39:32]} {[%emt 00:06:26]} h6 {[%clk 00:59:56]} {[%emt
00:06:02]} 21. Qd2 {[%clk 00:39:50]} {[%emt 00:00:11]} f4 {[%clk 00:54:58]}
{[%emt 00:05:29]} 22. Ne2 {[%clk 00:37:31]} {[%emt 00:02:49]} g5 {[%clk
00:51:39]} {[%emt 00:03:50]} 23. Nd4 {[%clk 00:35:48]} {[%emt 00:02:12]} c5
{[%clk 00:44:50]} {[%emt 00:07:20]} 24. Nb5 {[%clk 00:34:36]} {[%emt 00:01:41]}
Qb6 {[%clk 00:43:45]} {[%emt 00:01:35]} 25. bxc5 {[%clk 00:22:49]} {[%emt
00:12:17]} dxc5 {[%clk 00:43:32]} {[%emt 00:00:43]} 26. Qd7 {[%clk 00:22:51]}
{[%emt 00:00:28]} Rfe8 {[%clk 00:41:50]} {[%emt 00:02:12]} 27. Nc7 {[%clk
00:20:58]} {[%emt 00:02:23]} Rad8 {[%clk 00:40:52]} {[%emt 00:01:28]} 28. Nxe8+
{[%clk 00:20:37]} {[%emt 00:00:50]} Kf8 {[%clk 00:41:17]} {[%emt 00:00:05]} 29.
Nf6 {[%clk 00:20:28]} {[%emt 00:00:38]} Qa5 {[%clk 00:41:20]} {[%emt 00:00:28]}
30. Nh7+ {[%clk 00:19:52]} {[%emt 00:01:06]} Kg8 {[%clk 00:41:08]} {[%emt
00:00:42]} 31. Qxe7 {[%clk 00:20:03]} {[%emt 00:00:19]} 1-0

[Event "Swedish Chess Championship 2019: Kadett-SM"]
[Site "Stiga Sports Arena, Arenatorget 1, Eskilstuna, Sweden, Sweden"]
[Date "2019.07.12"]
[Round "6.2"]
[White "Zarytovskaya, Margo"]
[Black "Joensson, Oscar"]
[Result "1-0"]
[TimeControl "90 minutes for 40 moves + 30 minutes for the rest of the game + 30 seconds per move from move one"]
[WhiteFideId "14149249"]
[BlackFideId "1729977"]
[WhiteElo "1895"]
[BlackElo "1752"]

1. e4 {[%clk 01:30:59]} c6 {[%clk 01:30:55]} {[%emt 00:00:05]} 2. d4 {[%clk
01:31:17]} {[%emt 00:00:12]} d5 {[%clk 01:31:20]} {[%emt 00:00:05]} 3. Nc3
{[%clk 01:31:39]} {[%emt 00:00:08]} dxe4 {[%clk 01:31:43]} {[%emt 00:00:07]} 4.
Nxe4 {[%clk 01:32:04]} {[%emt 00:00:04]} Bf5 {[%clk 01:32:09]} {[%emt
00:00:05]} 5. Ng3 {[%clk 01:32:28]} {[%emt 00:00:06]} Bg6 {[%clk 01:32:34]}
{[%emt 00:00:05]} 6. Nh3 {[%clk 01:32:51]} {[%emt 00:00:06]} e6 {[%clk
01:30:37]} {[%emt 00:02:28]} 7. Nf4 {[%clk 01:32:57]} {[%emt 00:00:24]} Ne7
{[%clk 01:27:12]} {[%emt 00:03:55]} 8. h4 {[%clk 01:27:43]} {[%emt 00:05:44]}
h6 {[%clk 01:16:15]} {[%emt 00:11:27]} 9. Bc4 {[%clk 01:25:05]} {[%emt
00:03:08]} Qd6 {[%clk 01:09:26]} {[%emt 00:07:18]} 10. Bb3 {[%clk 01:18:18]}
{[%emt 00:07:17]} Nd7 {[%clk 01:00:51]} {[%emt 00:09:05]} 11. Nxg6 {[%clk
01:13:59]} {[%emt 00:04:50]} Nxg6 {[%clk 01:01:08]} {[%emt 00:00:12]} 12. h5
{[%clk 01:14:01]} {[%emt 00:00:28]} Ne7 {[%clk 00:57:37]} {[%emt 00:04:01]} 13.
Ne4 {[%clk 01:12:27]} {[%emt 00:02:04]} Qc7 {[%clk 00:55:48]} {[%emt 00:02:19]}
14. Qf3 {[%clk 01:09:49]} {[%emt 00:03:08]} Nf5 {[%clk 00:47:25]} {[%emt
00:08:54]} 15. Bf4 {[%clk 01:07:39]} {[%emt 00:02:40]} Qa5+ {[%clk 00:46:45]}
{[%emt 00:01:11]} 16. Bd2 {[%clk 01:07:25]} {[%emt 00:00:43]} Bb4 {[%clk
00:46:49]} {[%emt 00:00:25]} 17. c3 {[%clk 01:05:54]} {[%emt 00:02:01]} Be7
{[%clk 00:47:14]} {[%emt 00:00:05]} 18. O-O-O {[%clk 01:04:53]} {[%emt
00:01:32]} Nf6 {[%clk 00:33:35]} {[%emt 00:14:09]} 19. Rhe1 {[%clk 00:55:47]}
{[%emt 00:09:36]} Nh4 {[%clk 00:25:59]} {[%emt 00:08:05]} 20. Nxf6+ {[%clk
00:47:49]} {[%emt 00:08:29]} Bxf6 {[%clk 00:25:56]} {[%emt 00:00:33]} 21. Qe4
{[%clk 00:43:22]} {[%emt 00:04:57]} Qxh5 {[%clk 00:20:15]} {[%emt 00:06:10]} 22.
d5 {[%clk 00:43:09]} {[%emt 00:00:43]} O-O {[%clk 00:17:01]} {[%emt 00:03:44]}
23. dxe6 {[%clk 00:42:07]} {[%emt 00:01:33]} fxe6 {[%clk 00:16:34]} {[%emt
00:00:57]} 24. Qxe6+ {[%clk 00:41:20]} {[%emt 00:01:17]} Kh8 {[%clk 00:16:36]}
{[%emt 00:00:27]} 25. g3 {[%clk 00:40:18]} {[%emt 00:01:32]} Nf3 {[%clk
00:14:55]} {[%emt 00:02:10]} 26. Rh1 {[%clk 00:38:20]} {[%emt 00:02:28]} Qe5
{[%clk 00:15:01]} {[%emt 00:00:24]} 27. Qg4 {[%clk 00:34:04]} {[%emt 00:04:46]}
Nxd2 {[%clk 00:15:07]} {[%emt 00:00:25]} 28. Rxd2 {[%clk 00:34:30]} {[%emt
00:00:04]} Rad8 {[%clk 00:14:55]} {[%emt 00:00:42]} 29. Re2 {[%clk 00:32:23]}
{[%emt 00:02:37]} Qg5+ {[%clk 00:14:47]} {[%emt 00:00:38]} 30. Qxg5 {[%clk
00:32:32]} {[%emt 00:00:21]} Bxg5+ {[%clk 00:15:12]} {[%emt 00:00:06]} 31. f4
{[%clk 00:32:51]} {[%emt 00:00:10]} Bf6 {[%clk 00:15:37]} {[%emt 00:00:05]} 32.
g4 {[%clk 00:31:46]} {[%emt 00:01:36]} Rd6 {[%clk 00:16:02]} {[%emt 00:00:05]}
33. Rhe1 {[%clk 00:28:01]} {[%emt 00:04:15]} Bh4 {[%clk 00:15:23]} {[%emt
00:01:09]} 34. Re8 {[%clk 00:25:30]} {[%emt 00:03:02]} Rdf6 {[%clk 00:14:16]}
{[%emt 00:01:36]} 35. Rxf8+ {[%clk 00:24:18]} {[%emt 00:01:43]} Rxf8 {[%clk
00:14:38]} {[%emt 00:00:08]} 36. Rh1 {[%clk 00:22:20]} {[%emt 00:02:27]} Bg3
{[%clk 00:14:57]} {[%emt 00:00:12]} 37. f5 {[%clk 00:22:37]} {[%emt 00:00:13]}
Re8 {[%clk 00:14:45]} {[%emt 00:00:41]} 38. Be6 {[%clk 00:20:24]} {[%emt
00:02:43]} Bf4+ {[%clk 00:14:39]} {[%emt 00:00:37]} 39. Kc2 {[%clk 00:20:36]}
{[%emt 00:00:18]} Rd8 {[%clk 00:15:00]} {[%emt 00:00:08]} 40. Bf7 {[%clk
00:20:33]} {[%emt 00:00:33]} Rd2+ {[%clk 00:13:14]} {[%emt 00:02:16]} 41. Kb3
{[%clk 00:20:57]} {[%emt 00:00:07]} Re2 {[%clk 00:13:20]} {[%emt 00:00:24]} 42.
Rd1 {[%clk 00:20:12]} {[%emt 00:01:14]} h5 {[%clk 00:10:33]} {[%emt 00:03:17]}
43. Bxh5 {[%clk 00:19:45]} {[%emt 00:00:58]} Kh7 {[%clk 00:10:19]} {[%emt
00:00:44]} 44. Rd7 {[%clk 00:19:19]} {[%emt 00:00:56]} Bc1 {[%clk 00:10:38]}
{[%emt 00:00:11]} 45. f6 {[%clk 00:17:11]} {[%emt 00:02:37]} b5 {[%clk
00:20:05]} {[%emt 00:21:03]} 46. Rxg7+ {[%clk 00:44:36]} {[%emt 00:03:05]} Kh8
{[%clk 00:19:26]} {[%emt 00:01:10]} 47. Kb4 {[%clk 00:43:40]} {[%emt 00:01:26]}
Re4+ {[%clk 00:16:31]} {[%emt 00:03:24]} 48. Kc5 {[%clk 00:42:46]} {[%emt
00:01:24]} Bxb2 {[%clk 00:13:06]} {[%emt 00:03:57]} 49. g5 {[%clk 00:39:23]}
{[%emt 00:03:52]} Bxc3 {[%clk 00:12:31]} {[%emt 00:01:05]} 50. Kxc6 {[%clk
00:33:49]} {[%emt 00:06:04]} Rf4 {[%clk 00:12:20]} {[%emt 00:00:41]} 51. Rf7
{[%clk 00:32:26]} {[%emt 00:01:53]} Kg8 {[%clk 00:11:33]} {[%emt 00:01:17]} 52.
Kd7 {[%clk 00:24:50]} {[%emt 00:08:06]} Rf5 {[%clk 00:08:57]} {[%emt 00:03:07]}
53. Rg7+ {[%clk 00:23:43]} {[%emt 00:01:37]} Kh8 {[%clk 00:07:17]} {[%emt
00:02:10]} 54. Rg6 {[%clk 00:21:56]} {[%emt 00:02:16]} Bd2 {[%clk 00:05:15]}
{[%emt 00:02:32]} 55. Ke6 {[%clk 00:20:30]} {[%emt 00:01:57]} 1-0

[Event "Swedish Chess Championship 2019: Kadett-SM"]
[Site "Stiga Sports Arena, Arenatorget 1, Eskilstuna, Sweden, Sweden"]
[Date "2019.07.12"]
[Round "6.3"]
[White "Dingertz, Erik"]
[Black "Mitra, Akash"]
[Result "1/2-1/2"]
[TimeControl "90 minutes for 40 moves + 30 minutes for the rest of the game + 30 seconds per move from move one"]
[WhiteFideId "1741578"]
[BlackFideId "1726714"]
[WhiteElo "1959"]
[BlackElo "1957"]

1. c4 {[%clk 01:30:58]} {[%emt 00:00:01]} Nf6 {[%clk 01:29:32]} {[%emt
00:01:28]} 2. g3 {[%clk 01:31:17]} {[%emt 00:00:11]} g6 {[%clk 01:29:48]}
{[%emt 00:00:14]} 3. Bg2 {[%clk 01:31:41]} {[%emt 00:00:04]} Bg7 {[%clk
01:30:11]} {[%emt 00:00:08]} 4. Nc3 {[%clk 01:31:46]} {[%emt 00:00:24]} O-O
{[%clk 01:30:29]} {[%emt 00:00:13]} 5. d3 {[%clk 01:31:56]} {[%emt 00:00:21]}
d6 {[%clk 01:30:34]} {[%emt 00:00:26]} 6. Rb1 {[%clk 01:31:06]} {[%emt
00:01:20]} Nh5 {[%clk 01:29:39]} {[%emt 00:01:25]} 7. Bd2 {[%clk 01:30:38]}
{[%emt 00:00:58]} f5 {[%clk 01:27:52]} {[%emt 00:02:17]} 8. b4 {[%clk
01:30:35]} {[%emt 00:00:33]} Nc6 {[%clk 01:23:25]} {[%emt 00:04:58]} 9. b5
{[%clk 01:26:52]} {[%emt 00:04:13]} Ne5 {[%clk 01:22:33]} {[%emt 00:01:21]} 10.
Qb3 {[%clk 01:19:35]} {[%emt 00:07:47]} Kh8 {[%clk 01:21:23]} {[%emt 00:01:40]}
11. Nf3 {[%clk 01:12:28]} {[%emt 00:07:37]} Nd7 {[%clk 01:16:03]} {[%emt
00:05:50]} 12. Qb4 {[%clk 00:56:47]} {[%emt 00:16:11]} e5 {[%clk 01:12:08]}
{[%emt 00:04:25]} 13. Nd5 {[%clk 00:52:54]} {[%emt 00:04:23]} h6 {[%clk
01:08:54]} {[%emt 00:03:44]} 14. a4 {[%clk 00:48:11]} {[%emt 00:05:14]} g5
{[%clk 01:08:43]} {[%emt 00:00:41]} 15. Bc3 {[%clk 00:39:40]} {[%emt 00:09:01]}
Nhf6 {[%clk 01:08:05]} {[%emt 00:01:07]} 16. Nd2 {[%clk 00:37:47]} {[%emt
00:02:22]} Nxd5 {[%clk 01:05:56]} {[%emt 00:02:39]} 17. cxd5 {[%clk 00:37:11]}
{[%emt 00:01:06]} Nf6 {[%clk 01:04:42]} {[%emt 00:01:45]} 18. h4 {[%clk
00:32:53]} {[%emt 00:04:47]} g4 {[%clk 01:04:22]} {[%emt 00:00:50]} 19. d4
{[%clk 00:22:41]} {[%emt 00:10:43]} e4 {[%clk 01:03:42]} {[%emt 00:01:10]} 20.
Qc4 {[%clk 00:22:36]} {[%emt 00:00:35]} b6 {[%clk 01:03:50]} {[%emt 00:00:23]}
21. e3 {[%clk 00:20:57]} {[%emt 00:02:08]} Bb7 {[%clk 01:00:28]} {[%emt
00:03:52]} 22. Ba1 {[%clk 00:19:06]} {[%emt 00:02:21]} Bxd5 {[%clk 00:57:15]}
{[%emt 00:03:43]} 23. Qb4 {[%clk 00:16:05]} {[%emt 00:03:31]} Qd7 {[%clk
00:52:29]} {[%emt 00:05:15]} 24. O-O {[%clk 00:15:09]} {[%emt 00:01:28]} Rfc8
{[%clk 00:44:20]} {[%emt 00:08:38]} 25. Rfc1 {[%clk 00:13:41]} {[%emt
00:01:58]} a6 {[%clk 00:41:39]} {[%emt 00:03:12]} 26. Bf1 {[%clk 00:13:13]}
{[%emt 00:00:58]} axb5 {[%clk 00:41:05]} {[%emt 00:01:04]} 27. Bxb5 {[%clk
00:11:49]} {[%emt 00:01:53]} Qf7 {[%clk 00:38:44]} {[%emt 00:02:51]} 28. Rc2
{[%clk 00:11:32]} {[%emt 00:00:48]} Bf8 {[%clk 00:31:14]} {[%emt 00:07:58]} 29.
Rbc1 {[%clk 00:10:24]} {[%emt 00:01:40]} c5 {[%clk 00:29:46]} {[%emt 00:01:58]}
30. dxc5 {[%clk 00:09:58]} {[%emt 00:00:56]} dxc5 {[%clk 00:29:09]} {[%emt
00:01:07]} 31. Qb2 {[%clk 00:08:51]} {[%emt 00:01:35]} Bg7 {[%clk 00:29:22]}
{[%emt 00:00:19]} 32. Nc4 {[%clk 00:08:40]} {[%emt 00:00:41]} Bxc4 {[%clk
00:28:33]} {[%emt 00:01:19]} 33. Bxc4 {[%clk 00:08:20]} {[%emt 00:00:50]} Qc7
{[%clk 00:28:04]} {[%emt 00:00:57]} 34. Be6 {[%clk 00:05:29]} {[%emt 00:03:23]}
1/2-1/2

[Event "Swedish Chess Championship 2019: Kadett-SM"]
[Site "Stiga Sports Arena, Arenatorget 1, Eskilstuna, Sweden, Sweden"]
[Date "2019.07.12"]
[Round "6.4"]
[White "Ivarsson, Sebastian"]
[Black "Skahlberg Bjerknes-Lima de Faria, Warg"]
[Result "1-0"]
[TimeControl "90 minutes for 40 moves + 30 minutes for the rest of the game + 30 seconds per move from move one"]
[WhiteFideId "1738593"]
[BlackFideId "1738100"]
[WhiteElo "2079"]
[BlackElo "1708"]

1. d4 {[%clk 01:30:53]} {[%emt 00:00:05]} Nf6 {[%clk 01:30:20]} {[%emt
00:00:41]} 2. c4 {[%clk 01:30:54]} {[%emt 00:00:28]} e6 {[%clk 01:29:36]}
{[%emt 00:01:15]} 3. Nc3 {[%clk 01:30:55]} {[%emt 00:00:27]} Bb4 {[%clk
01:29:26]} {[%emt 00:00:42]} 4. e3 {[%clk 01:30:51]} {[%emt 00:00:34]} O-O
{[%clk 01:26:14]} {[%emt 00:03:43]} 5. Bd3 {[%clk 01:30:34]} {[%emt 00:00:44]}
d5 {[%clk 01:21:43]} {[%emt 00:05:03]} 6. Nf3 {[%clk 01:29:15]} {[%emt
00:01:48]} c5 {[%clk 01:17:16]} {[%emt 00:04:58]} 7. O-O {[%clk 01:28:07]}
{[%emt 00:01:35]} Nc6 {[%clk 01:13:56]} {[%emt 00:03:53]} 8. a3 {[%clk
01:21:45]} {[%emt 00:06:51]} Bxc3 {[%clk 01:10:35]} {[%emt 00:03:51]} 9. bxc3
{[%clk 01:21:56]} {[%emt 00:00:19]} b6 {[%clk 01:08:54]} {[%emt 00:02:11]} 10.
cxd5 {[%clk 01:19:24]} {[%emt 00:03:01]} exd5 {[%clk 01:07:50]} {[%emt
00:01:35]} 11. a4 {[%clk 01:16:53]} {[%emt 00:03:01]} Bg4 {[%clk 01:02:10]}
{[%emt 00:06:09]} 12. h3 {[%clk 01:09:50]} {[%emt 00:07:33]} Bh5 {[%clk
01:00:31]} {[%emt 00:02:09]} 13. Ba3 {[%clk 01:09:04]} {[%emt 00:01:16]} Qd6
{[%clk 00:56:47]} {[%emt 00:04:15]} 14. Be2 {[%clk 00:55:22]} {[%emt 00:14:12]}
Rfe8 {[%clk 00:49:20]} {[%emt 00:07:57]} 15. c4 {[%clk 00:46:03]} {[%emt
00:09:49]} Rac8 {[%clk 00:33:01]} {[%emt 00:16:48]} 16. dxc5 {[%clk 00:38:41]}
{[%emt 00:07:52]} bxc5 {[%clk 00:33:16]} {[%emt 00:00:15]} 17. cxd5 {[%clk
00:38:22]} {[%emt 00:00:49]} Nxd5 {[%clk 00:27:53]} {[%emt 00:05:53]} 18. Rc1
{[%clk 00:31:15]} {[%emt 00:07:37]} Rcd8 {[%clk 00:20:38]} {[%emt 00:07:45]} 19.
Rxc5 {[%clk 00:25:44]} {[%emt 00:06:01]} Bg6 {[%clk 00:09:20]} {[%emt
00:11:47]} 20. Qc1 {[%clk 00:23:57]} {[%emt 00:02:17]} Nce7 {[%clk 00:07:52]}
{[%emt 00:01:59]} 21. Rd1 {[%clk 00:20:40]} {[%emt 00:03:46]} Qf6 {[%clk
00:03:26]} {[%emt 00:04:57]} 22. Nd4 {[%clk 00:17:55]} {[%emt 00:03:15]} Nb6
{[%clk 00:02:48]} {[%emt 00:01:09]} 23. Bb5 {[%clk 00:17:04]} {[%emt 00:01:22]}
Rf8 {[%clk 00:02:58]} {[%emt 00:00:20]} 24. Rc7 {[%clk 00:14:52]} {[%emt
00:02:41]} Nbd5 {[%clk 00:02:55]} {[%emt 00:00:33]} 25. Bxe7 {[%clk 00:08:12]}
{[%emt 00:07:10]} Nxe7 {[%clk 00:03:07]} {[%emt 00:00:18]} 26. Rxa7 {[%clk
00:08:31]} {[%emt 00:00:12]} Nf5 {[%clk 00:02:08]} {[%emt 00:01:29]} 27. Nxf5
{[%clk 00:07:53]} {[%emt 00:01:07]} Bxf5 {[%clk 00:02:23]} {[%emt 00:00:15]} 28.
Bd7 {[%clk 00:05:43]} {[%emt 00:02:39]} Be4 {[%clk 00:01:47]} {[%emt 00:01:07]}
29. f3 {[%clk 00:03:54]} {[%emt 00:02:18]} Bg6 {[%clk 00:01:39]} {[%emt
00:00:38]} 30. Rc7 {[%clk 00:03:55]} {[%emt 00:00:29]} Qg5 {[%clk 00:01:19]}
{[%emt 00:00:50]} 31. Qc5 {[%clk 00:03:07]} {[%emt 00:01:17]} Qg3 {[%clk
00:01:03]} {[%emt 00:00:47]} 32. Rc8 {[%clk 00:02:18]} {[%emt 00:01:18]} Rxc8
{[%clk 00:00:50]} {[%emt 00:00:43]} 33. Bxc8 {[%clk 00:02:43]} {[%emt
00:00:06]} f5 {[%clk 00:00:40]} {[%emt 00:00:41]} 34. Be6+ {[%clk 00:03:00]}
{[%emt 00:00:13]} Bf7 {[%clk 00:00:54]} {[%emt 00:00:17]} 35. Bxf7+ {[%clk
00:02:46]} {[%emt 00:00:43]} Kxf7 {[%clk 00:01:09]} {[%emt 00:00:15]} 36. Qxf5+
{[%clk 00:02:51]} {[%emt 00:00:25]} Kg8 {[%clk 00:01:25]} {[%emt 00:00:14]} 37.
Qe6+ {[%clk 00:03:10]} {[%emt 00:00:10]} Kh8 {[%clk 00:01:48]} {[%emt
00:00:08]} 38. Qd6 {[%clk 00:03:26]} {[%emt 00:00:13]} Qxd6 {[%clk 00:01:40]}
{[%emt 00:00:39]} 39. Rxd6 {[%clk 00:03:52]} {[%emt 00:00:04]} Kg8 {[%clk
00:01:15]} {[%emt 00:00:55]} 40. a5 {[%clk 00:04:05]} {[%emt 00:00:17]} Ra8
{[%clk 00:01:24]} {[%emt 00:00:21]} 41. a6 {[%clk 00:04:29]} {[%emt 00:00:07]}
Ra7 {[%clk 00:00:37]} {[%emt 00:01:16]} 42. Rb6 {[%clk 00:04:38]} {[%emt
00:00:20]} 1-0

[Event "Swedish Chess Championship 2019: Kadett-SM"]
[Site "Stiga Sports Arena, Arenatorget 1, Eskilstuna, Sweden, Sweden"]
[Date "2019.07.12"]
[Round "6.5"]
[White "Ostling, Albin"]
[Black "Lindholm, Gustav"]
[Result "0-1"]
[TimeControl "90 minutes for 40 moves + 30 minutes for the rest of the game + 30 seconds per move from move one"]
[WhiteFideId "1746430"]
[BlackFideId "1736515"]
[WhiteElo "1660"]
[BlackElo "1950"]

1. e4 {[%clk 01:30:59]} d5 {[%clk 01:23:18]} 2. exd5 {[%clk 01:30:59]} Qxd5
{[%clk 01:31:21]} {[%emt 43:59:17]} 3. Nc3 {[%clk 01:31:41]} Qd6 {[%clk
01:31:46]} {[%emt 00:00:12]} 4. Bc4 {[%clk 01:29:25]} Nf6 {[%clk 01:31:33]}
{[%emt 00:03:29]} 5. Nge2 {[%clk 01:28:53]} a6 {[%clk 01:31:02]} {[%emt
00:02:05]} 6. a4 {[%emt 00:01:18]} b6 {[%clk 01:27:18]} {[%emt 00:04:13]} 7. d3
{[%clk 01:24:00]} {[%emt 00:04:35]} Bb7 {[%clk 01:25:16]} {[%emt 00:02:31]} 8.
Bf4 {[%clk 01:15:33]} {[%emt 00:08:56]} e5 {[%clk 01:21:23]} {[%emt 00:04:25]}
9. Bg3 {[%clk 01:11:18]} {[%emt 00:04:45]} Bxg2 {[%clk 01:19:49]} {[%emt
00:02:04]} 10. Rg1 {[%clk 01:07:16]} {[%emt 00:04:31]} Bf3 {[%clk 01:16:24]}
{[%emt 00:03:54]} 11. d4 {[%clk 01:01:13]} {[%emt 00:06:35]} Nc6 {[%clk
01:11:06]} {[%emt 00:05:49]} 12. Qd3 {[%clk 00:29:25]} {[%emt 00:32:17]} Bxe2
{[%clk 01:06:59]} {[%emt 00:04:36]} 13. Qxe2 {[%clk 00:25:18]} {[%emt
00:04:37]} Nxd4 {[%clk 01:01:55]} {[%emt 00:05:35]} 14. Bxe5 {[%clk 00:24:07]}
{[%emt 00:01:42]} Nxe2 {[%clk 01:01:00]} {[%emt 00:01:25]} 15. Bxd6 {[%clk
00:24:29]} {[%emt 00:00:09]} Bxd6 {[%clk 00:58:15]} {[%emt 00:03:15]} 16. Kxe2
{[%clk 00:24:28]} {[%emt 00:00:30]} O-O {[%clk 00:57:54]} {[%emt 00:00:51]} 17.
h3 {[%clk 00:24:25]} {[%emt 00:00:33]} Rfe8+ {[%clk 00:58:03]} {[%emt
00:00:21]} 18. Kf3 {[%clk 00:23:52]} {[%emt 00:01:02]} Be5 {[%clk 00:55:42]}
{[%emt 00:02:52]} 19. Rge1 {[%clk 00:17:57]} {[%emt 00:06:25]} Bxc3 {[%clk
00:55:15]} {[%emt 00:00:57]} 20. bxc3 {[%clk 00:16:48]} {[%emt 00:01:39]} a5
{[%clk 00:53:58]} {[%emt 00:01:47]} 21. Rad1 {[%clk 00:15:11]} {[%emt
00:02:07]} Rxe1 {[%clk 00:51:52]} {[%emt 00:02:36]} 22. Rxe1 {[%clk 00:15:31]}
{[%emt 00:00:09]} Re8 {[%clk 00:52:11]} {[%emt 00:00:10]} 23. Rxe8+ {[%clk
00:12:54]} {[%emt 00:03:08]} Nxe8 {[%clk 00:52:38]} {[%emt 00:00:04]} 24. Bd3
{[%clk 00:09:55]} {[%emt 00:03:29]} Kf8 {[%clk 00:52:53]} {[%emt 00:00:15]} 25.
Ke4 {[%clk 00:10:12]} {[%emt 00:00:12]} Nf6+ {[%clk 00:52:48]} {[%emt
00:00:34]} 26. Kd4 {[%clk 00:10:06]} {[%emt 00:00:37]} Ke7 {[%clk 00:52:42]}
{[%emt 00:00:36]} 27. Kc4 {[%clk 00:07:15]} {[%emt 00:03:21]} c6 {[%clk
00:52:10]} {[%emt 00:01:01]} 28. Kd4 {[%clk 00:05:20]} {[%emt 00:02:24]} Kd6
{[%clk 00:51:39]} {[%emt 00:01:02]} 29. c4 {[%clk 00:04:59]} {[%emt 00:00:51]}
Nd7 {[%clk 00:51:14]} {[%emt 00:00:54]} 30. c3 {[%clk 00:04:03]} {[%emt
00:01:26]} Nc5 {[%clk 00:51:14]} {[%emt 00:00:30]} 31. Bc2 {[%clk 00:03:09]}
{[%emt 00:01:25]} g5 {[%clk 00:49:57]} {[%emt 00:01:46]} 32. f3 {[%clk
00:02:47]} {[%emt 00:00:52]} h5 {[%clk 00:49:38]} {[%emt 00:00:50]} 33. Ke3
{[%clk 00:02:08]} {[%emt 00:01:09]} Ke5 {[%clk 00:49:49]} {[%emt 00:00:19]} 34.
f4+ {[%clk 00:01:43]} {[%emt 00:00:55]} gxf4+ {[%clk 00:49:57]} {[%emt
00:00:21]} 35. Kf3 {[%clk 00:02:06]} {[%emt 00:00:07]} f5 {[%clk 00:50:16]}
{[%emt 00:00:11]} 36. Ke2 {[%clk 00:01:36]} {[%emt 00:01:00]} Ne4 {[%clk
00:50:39]} {[%emt 00:00:07]} 37. Kd3 {[%clk 00:01:49]} {[%emt 00:00:18]} Nf2+
{[%clk 00:51:04]} {[%emt 00:00:05]} 38. Ke2 {[%clk 00:02:09]} {[%emt 00:00:10]}
Nxh3 {[%clk 00:51:23]} {[%emt 00:00:11]} 39. Kf3 {[%clk 00:02:24]} {[%emt
00:00:15]} Ng5+ {[%clk 00:51:43]} {[%emt 00:00:10]} 40. Kf2 {[%clk 00:02:43]}
{[%emt 00:00:10]} Ne4+ {[%clk 00:52:08]} {[%emt 00:00:06]} 0-1